{"text_format":"1","workbook":"xlsx","n_sheets":1,"sheets":["Berechnung Art. 42 Abs. 3 RPV"],"not_rendered":{"charts":0,"images":7,"macros":1,"external_links":0,"defined_names":3,"comments":1,"pivot_tables":0},"unopened":[],"bounds":{"document_bytes":16777216,"sheet_cells":100000,"rows_first":2000,"rows_last":500,"rows_between":2000,"halvings":0,"cell_chars":16384,"cell_head_chars":4096},"cells_cut":0,"cells_raw":0,"read":"whole","date_system":"1900"}

{"sheet":"Berechnung Art. 42 Abs. 3 RPV","index":0,"n_rows":38,"n_cols":15,"rows_kept":38,"cut":false,"hidden":false,"merged":[[37,13,37,14],[37,1,37,12],[26,2,26,3],[36,1,36,12],[31,1,31,3],[34,1,34,12],[29,2,29,3],[29,4,29,6],[27,1,27,3],[23,4,23,6],[26,11,26,12],[25,4,25,6],[0,4,0,12],[10,4,10,6],[4,4,4,6],[26,4,26,6],[1,4,1,5],[23,11,23,12],[23,8,23,9],[16,1,16,3],[14,1,14,3],[23,1,23,3],[12,1,12,3],[17,1,17,3],[13,1,13,3],[25,2,25,3],[27,4,27,7],[33,1,33,12],[30,4,30,6],[31,4,31,7],[27,11,27,12],[30,11,30,12],[30,2,30,3],[31,11,31,12],[7,1,7,3],[11,1,11,3],[0,1,0,3],[3,1,3,3],[4,1,4,3],[5,1,5,3],[1,1,1,3],[6,1,6,3],[9,1,9,3],[10,1,10,3]]}
[null,"Bauobjekt:"]
[null,"Zeitpunkt der Rechtsänderung",null,null,"1972-07-01"]
[]
[null,{"$f":"\"Zustand \"&DAY(E2)&\". \"&MONTH(E2)&\".\"&YEAR(E2)","v":"Zustand 1. 7.1972"}]
[null,null,null,null,"Einzelflächen (m2)",null,null,null,null,null,null,null,null,"Total (m2)"]
[null,"aBGF",null,null,null,null,null,null,null,null,null,null,null,{"$f":"SUM(E6:M6)","v":0},"T1"]
[null,"BNF",null,null,null,null,null,null,null,null,null,null,null,{"$f":"SUM(E7:M7)","v":0}]
[null,"aBGF + BNF",null,null,null,null,null,null,null,null,null,null,null,{"$f":"SUM(N6:N7)","v":0},"T2"]
[]
[null,"Zustand gemäss Umbauvorhaben"]
[null,null,null,null,"Einzelflächen (m2)",null,null,null,null,null,null,null,null,"Total (m2)"]
[null,"aBGF innerhalb Gebäudevolumen [1]",null,null,null,null,null,null,null,null,null,null,null,{"$f":"SUM(E12:M12)","v":0},"T3"]
[null,{"$f":"IF(E20=\"a\",\"\",\"aBGF ausserhalb Gebäudevolumen\")","v":"aBGF ausserhalb Gebäudevolumen"},null,null,null,null,null,null,null,null,null,null,null,{"$f":"SUM(E13:M13)","v":0},"T4"]
[null,"BNF innerhalb Gebäudevolumen [1]",null,null,null,null,null,null,null,null,null,null,null,{"$f":"SUM(E14:M14)","v":0},"T5"]
[null,{"$f":"IF(E20=\"a\",\"\",\"BNF ausserhalb Gebäudevolumen\")","v":"BNF ausserhalb Gebäudevolumen"},null,null,null,null,null,null,null,null,null,null,null,{"$f":"SUM(E15:M15)","v":0},"T6"]
[]
[null,"Durch Abbruch beseitigte aBGF",null,null,null,null,null,null,null,null,null,null,null,{"$f":"SUM(E17:M17)","v":0},"T7"]
[null,"Durch Abbruch beseitigte BNF",null,null,null,null,null,null,null,null,null,null,null,{"$f":"SUM(E18:M18)","v":0},"T8"]
[]
[null,null,null,true,"b"]
[]
[]
[]
[null,"Flächenvergleich",null,null,"Berechnung",null,null,"m2","Anrechenbar",null,null,"Zunahme"]
[null,null,null,null,null,null,null,null,"%","m2"]
[null,"aBGF","Zusätzliche aBGF im bestehenden Gebäude-volumen [2]",null,{"$f":"IF(N12-N6<-N17,\"= T3 - T1, min-  destens -(T7),            = \"&-N17&\" =\",\"= T3 - T1, min-  destens (-T7),            = \"&N12&\" - \"&N6&\" =\")","v":"= T3 - T1, min-  destens (-T7),            = 0 - 0 ="},null,null,{"$f":"IF(N12-N6<0,MAX(-N17,N12-N6),N12-N6)","v":0},{"$f":"IF(E20=\"a\",\"100%\",\"50%\")","v":"50%"},{"$f":"IF(E20=\"a\",H26,0.5*H26)","v":0}]
[null,null,{"$f":"IF(E20=\"a\",\"\",\"neue aBGF ausserhalb des bestehenden Gebäude-volumens\")","v":"neue aBGF ausserhalb des bestehenden Gebäude-volumens"},null,{"$f":"IF(E20=\"a\",\"\",\"= T4 =\")","v":"= T4 ="},null,null,{"$f":"IF(E20=\"a\",\"\",N13)","v":0},{"$f":"IF(E20=\"a\",\"\",\"100%\")","v":"100%"},{"$f":"IF(E20=\"a\",\"\",H27)","v":0},"T1",{"$f":"IF(E20=\"a\",\"Max. 60 %\",\"Max. 30 %\")","v":"Max. 30 %"}]
[null,"Total Erweiterung aBGF",null,null,"Max. 100 m2",null,null,null,{"$f":"IF(OR(L28=\"\",E20=\"a\"),\"\",IF(J28>100,\"¡\",\"ü\"))","v":""},{"$f":"IF(E20=\"a\",J26,J26+J27)","v":0},{"$f":"N6","v":0},{"$f":"IF(K28=0,\"\",ROUND(J28/K28,3))","v":""},null,{"$f":"IF(L28=\"\",\"\",IF(E20=\"a\",IF(L28>0.6,\"¡\",\"ü\"),IF(L28>0.3,\"¡\",\"ü\")))","v":""}]
[]
[null,"aBGF + BNF","Zusätzliche Flächen (aBGF+BNF) im bestehenden Gebäudevolumen [2]",null,{"$f":"IF(N12+N14-N8<-N17-N18,\"= (T3+T5) - T2, min-destens -(T7+T8),        = -(\"&N17&\" + \"&N18&\") =\",\"= (T3+T5) - T2, min-destens -(T7+T8),        = (\"&N12&\" + \"&N14&\") - \"&N8&\" =\")","v":"= (T3+T5) - T2, min-destens -(T7+T8),        = (0 + 0) - 0 ="},null,null,{"$f":"IF(N12+N14-N8<0,MAX(-N17-N18,N12+N14-N8),N12+N14-N8)","v":0},0.5,{"$f":"0.5*H30","v":0}]
[null,null,"neue Flächen (aBGF + BNF) ausserhalb des bestehenden Gebäudevolumens",null,{"$f":"\"= T4 + T6                 = \"&N13&\" + \"&N15&\" =\"","v":"= T4 + T6                 = 0 + 0 ="},null,null,{"$f":"N13+N15","v":0},1,{"$f":"H31","v":0},"T2","Max. 30 %"]
[null,"Total Erweiterung aBGF + BNF",null,null,"Max. 100 m2",null,null,null,{"$f":"IF(L32=\"\",\"\",IF(J32>100,\"¡\",\"ü\"))","v":""},{"$f":"J30+J31","v":0},{"$f":"N8","v":0},{"$f":"IF(K32=0,\"\",ROUND(J32/K32,3))","v":""},null,{"$f":"IF(L32=\"\",\"\",IF(L32>0.3,\"¡\",\"ü\"))","v":""}]
[]
[null,{"$f":"IF(E20=\"a\",IF(N8>0,IF(L28>0.6,\"Die Voraussetzungen von Art. 42 Abs. 3 Bst. \" & $E$20 & \" RPV sind nicht erfüllt.\",\"Die Voraussetzungen von Art. 42 Abs. 3 Bst. \" & $E$20 & \" RPV sind erfüllt. Bitte prüfen Sie das Vorliegen der anderen Bewilligungsvoraussetzungen!\"),\"\"),IF(N8>0,IF(OR(J28>100,L28>0.3,J32>100,L32>0.3),\"Die Voraussetzungen von Art. 42 Abs. 3 Bst. \" & $E$20 & \" RPV sind nicht erfüllt.\",\"Die Voraussetzungen von Art. 42 Abs. 3 Bst. \" & $E$20 & \" RPV sind erfüllt. Bitte prüfen Sie das Vorliegen der anderen Bewilligungsvoraussetzungen!\"),\"\"))","v":""}]
[null,{"$f":"IF(N12<N6-N17,\"T3 ist noch kleiner als T1 - T7. Ist dies Absicht (z. B. Anhebung des Dachs)?\",IF(N12+N14<N8-N17-N18,\"T3 + T5 ist noch kleiner als T2 - (T7 + T8). Ist dies Absicht (z. B. Anhebung des Daches)?\",\"\"))","v":""}]
[]
[null,"[1]  Wird ein Gebäudeteil im öffentlichen Interesse verschoben (z. B. Verschiebung eines Anbaus an eine weniger exponierte Seite des Hauses), so können die Flächen ausnahmsweise als innerhalb des bestehenden Gebäudevolumens berechnet werden, wie wenn der Anbau nicht verschoben worden wäre."]
[null,"[2] Negative Werte werden berücksichtigt, so weit Flächen in diesem Umfang tatsächlich beseitigt wurden. Da sie auch negativ bloss zu 50% angerechnet werden, wird beim Verschieben von Gebäudeteilen per Saldo 50% der Fläche als neu angerechnet, was durchaus einem sachgerechten Resultat entspricht. Eine Ausnahme ist dann zu machen, wenn die Verschiebung im öffentlichen Interesse liegt (s. [1]).",null,null,null,null,null,null,null,null,null,null,null,"ARE, 29.8.2007"]